bitfinex-derivatives/quotes_BNBF0:USTF0_20250603
["timestamp","ask_amount","ask_price","bid_price","bid_amount"]
[1748988657965,1.02278998,660.14,659.61,0.30320947]
[1748988658166,1.13094282,660.12,659.61,0.30320947]
[1748988658367,1.13094282,660.04,659.61,0.30320947]
[1748988658669,1.13094282,659.97,659.61,0.30320947]
[1748988658867,1.02278998,659.96,659.61,0.30320947]
[1748988659168,1.02278998,659.95,659.61,0.30320947]
[1748988659366,1.02278998,659.94,659.61,0.30320947]
[1748988659565,1.02278998,659.93,659.61,0.30320947]
[1748988659762,1.13094282,659.96,659.61,0.30320947]
[1748988659763,1.02278998,659.92,659.61,0.30320947]
[1748988659964,1.02278998,659.91,659.61,0.30320947]
[1748988660162,1.02278998,659.9,659.61,0.30320947]
[1748988660365,1.02278998,659.89,659.61,0.30320947]
[1748988660566,1.022875,659.88,659.61,0.30320947]
[1748988660767,1.022875,659.87,659.61,0.30320947]
[1748988661067,1.022875,659.86,659.61,0.30320947]
[1748988661368,1.022875,659.85,659.61,0.30320947]
[1748988661568,1.022875,659.84,659.61,0.30320947]
[1748988661765,1.022875,659.83,659.61,0.30320947]
[1748988661965,1.022875,659.82,659.61,0.30320947]
[1748988662169,1.022875,659.81,659.61,0.30320947]
[1748988662469,1.022875,659.8,659.61,0.30320947]
[1748988662767,1.022875,659.79,659.61,0.30320947]
[1748988662971,1.022875,659.78,659.61,0.30320947]
[1748988663172,1.50814268,660.07,659.61,0.30320947]
[1748988663373,1.13161232,659.95,659.61,0.30320947]
[1748988663573,1.023006,659.94,659.61,0.30320947]
[1748988663772,1.023006,659.93,659.61,0.30320947]
[1748988663974,1.023006,659.92,659.61,0.30320947]
[1748988664173,1.023006,659.91,659.61,0.30320947]
[1748988664470,1.023006,659.9,659.61,0.30320947]
[1748988664774,1.023006,659.89,659.61,0.30320947]
[1748988664973,1.023006,659.88,659.61,0.30320947]
[1748988665174,1.023006,659.87,659.61,0.30320947]
[1748988665374,1.023006,659.86,659.61,0.30320947]
[1748988665574,1.023006,659.85,659.61,0.30320947]
[1748988665775,1.023006,659.84,659.61,0.30320947]
[1748988665973,1.023006,659.83,659.61,0.30320947]
[1748988666172,1.023006,659.82,659.61,0.30320947]
[1748988666377,1.023006,659.81,659.61,0.30320947]
[1748988666577,1.023006,659.8,659.61,0.30320947]
[1748988666776,1.023006,659.79,659.61,0.30320947]
[1748988666972,1.023006,659.78,659.61,0.30320947]
[1748988667273,1.02227907,659.77,659.61,0.30320947]
[1748988667473,1.02227907,659.76,659.61,0.30320947]
[1748988667673,1.02227907,659.75,659.61,0.30320947]
[1748988667879,1.02227907,659.74,659.61,0.30320947]
[1748988668079,1.13168828,659.95,659.61,0.30320947]
[1748988668378,2.15399378,659.94,659.61,0.30320947]
[1748988668581,1.0223055,659.93,659.61,0.30320947]
[1748988668774,1.0223055,659.92,659.61,0.30320947]
[1748988668980,1.0223055,659.91,659.61,0.30320947]
[1748988669176,1.0223055,659.9,659.61,0.30320947]
[1748988669375,1.0223055,659.89,659.61,0.30320947]
[1748988669575,1.13168828,659.94,659.61,0.30320947]
[1748988669576,1.0223055,659.88,659.61,0.30320947]
[1748988669778,1.0223055,659.87,659.61,0.30320947]
[1748988669975,1.0223055,659.86,659.61,0.30320947]
[1748988670180,1.0223055,659.85,659.61,0.30320947]
[1748988670378,1.0223055,659.84,659.61,0.30320947]
[1748988670577,1.0223055,659.83,659.61,0.30320947]
[1748988670780,1.0223055,659.82,659.61,0.30320947]
[1748988670980,1.50814268,660.08,659.61,0.30320947]
[1748988671174,1.13177373,659.96,659.61,0.30320947]
[1748988671381,1.02273677,659.95,659.61,0.30320947]
[1748988671676,1.02273677,659.94,659.61,0.30320947]
[1748988671879,1.02273677,659.93,659.61,0.30320947]
[1748988672075,1.02273677,659.92,659.61,0.30320947]
[1748988672278,1.02273677,659.91,659.61,0.30320947]
[1748988672575,1.02273677,659.9,659.61,0.30320947]
[1748988672780,1.02273677,659.89,659.61,0.30320947]
[1748988672982,1.02273677,659.88,659.61,0.30320947]
[1748988673182,1.02273677,659.87,659.61,0.30320947]
[1748988673382,1.02273677,659.86,659.61,0.30320947]
[1748988673582,1.02273677,659.85,659.61,0.30320947]
[1748988673780,1.02273677,659.84,659.61,0.30320947]
[1748988673981,1.02273677,659.83,659.61,0.30320947]
[1748988674182,1.02273677,659.82,659.61,0.30320947]
[1748988674378,1.02273677,659.81,659.61,0.30320947]
[1748988674581,1.02273677,659.8,659.61,0.30320947]
[1748988674777,1.02273677,659.79,659.61,0.30320947]
[1748988674980,1.02280984,659.78,659.61,0.30320947]
[1748988675180,1.02280984,659.77,659.61,0.30320947]
[1748988675378,1.02280984,659.76,659.61,0.30320947]
[1748988675578,1.02280984,659.75,659.61,0.30320947]
[1748988675780,1.13187029,660.05,659.61,0.30320947]
[1748988675977,1.02306474,660.04,659.61,0.30320947]
[1748988676181,1.02306474,660.03,659.61,0.30320947]
[1748988676376,1.02306474,660.02,659.61,0.30320947]
[1748988676580,1.02306474,660.01,659.61,0.30320947]
[1748988676777,1.02306474,660.0,659.61,0.30320947]
[1748988677077,1.02306474,659.99,659.61,0.30320947]
[1748988677280,1.02306474,659.98,659.61,0.30320947]
[1748988677481,1.02306474,659.97,659.61,0.30320947]
[1748988677683,1.02306474,659.96,659.61,0.30320947]
[1748988677882,1.02306474,659.95,659.61,0.30320947]
[1748988678080,1.02306474,659.94,659.61,0.30320947]
[1748988678284,1.02306474,659.93,659.61,0.30320947]
[1748988678485,1.02306474,659.92,659.61,0.30320947]
[1748988678678,1.50814268,660.22,659.61,0.30320947]
[1748988678882,1.13204991,660.05,659.61,0.30320947]
[1748988679083,1.02246535,660.04,659.61,0.30320947]
[1748988679283,1.02246535,660.03,659.61,0.30320947]
[1748988679585,1.02246535,660.02,659.61,0.30320947]
[1748988679884,1.02246535,660.01,659.61,0.30320947]
[1748988680183,1.02246535,660.0,659.61,0.30320947]
[1748988680384,1.02246535,659.99,659.61,0.30320947]
[1748988680583,1.02246535,659.98,659.61,0.30320947]
[1748988680778,1.02246535,659.97,659.61,0.30320947]
[1748988680979,1.02246535,659.96,659.61,0.30320947]
[1748988681182,1.02246535,659.95,659.61,0.30320947]
[1748988681383,1.02246535,659.94,659.61,0.30320947]
[1748988681584,1.02246535,659.93,659.61,0.30320947]
[1748988681785,1.02246535,659.92,659.61,0.30320947]
[1748988681986,1.02246535,659.91,659.61,0.30320947]
[1748988682187,1.02246535,659.9,659.61,0.30320947]
[1748988682387,1.02246535,659.89,659.61,0.30320947]
[1748988682589,1.02246535,659.88,659.61,0.30320947]
[1748988682889,1.02151529,659.87,659.61,0.30320947]
[1748988683082,1.02151529,659.86,659.61,0.30320947]
[1748988683285,1.02151529,659.85,659.61,0.30320947]
[1748988683486,1.02151529,659.84,659.61,0.30320947]
[1748988683788,1.02151529,659.83,659.61,0.30320947]
[1748988683987,1.02151529,659.82,659.61,0.30320947]
[1748988684191,1.02151529,659.81,659.61,0.30320947]
[1748988684392,1.02151529,659.8,659.61,0.30320947]
[1748988684586,1.02151529,659.79,659.61,0.30320947]
[1748988684791,1.02151529,659.78,659.61,0.30320947]
[1748988684992,1.02151529,659.77,659.61,0.30320947]
[1748988685192,1.02151529,659.76,659.61,0.30320947]
[1748988685393,1.13216149,659.99,659.61,0.30320947]
[1748988685596,1.0215206,659.98,659.61,0.30320947]
[1748988685794,1.0215206,659.97,659.61,0.30320947]
[1748988686094,1.0215206,659.96,659.61,0.30320947]
[1748988686294,1.13216149,659.99,659.61,0.30320947]
[1748988686295,1.0215206,659.95,659.61,0.30320947]
[1748988686493,1.0215206,659.94,659.61,0.30320947]
[1748988686692,1.02154025,659.93,659.61,0.30320947]
[1748988686888,1.02154025,659.92,659.61,0.30320947]
[1748988687195,1.02154025,659.91,659.61,0.30320947]
[1748988687489,1.02154025,659.9,659.61,0.30320947]
[1748988687693,1.02154025,659.89,659.61,0.30320947]
[1748988687893,1.02154025,659.88,659.61,0.30320947]
[1748988688092,1.02154025,659.87,659.61,0.30320947]
[1748988688292,1.02154025,659.86,659.61,0.30320947]
[1748988688491,1.50814268,660.16,659.61,0.30320947]
[1748988688492,1.02154025,659.85,659.61,0.30320947]
[1748988688795,1.02154025,659.84,659.61,0.30320947]
[1748988688991,1.02154025,659.83,659.61,0.30320947]
[1748988689198,1.02154025,659.82,659.61,0.30320947]
[1748988689497,1.13224943,660.01,659.61,0.30320947]
[1748988689697,1.02139786,660.0,659.61,0.30320947]
[1748988689896,1.02139786,659.99,659.61,0.30320947]
[1748988690097,1.02139786,659.98,659.61,0.30320947]
[1748988690297,1.02139786,659.97,659.61,0.30320947]
[1748988690498,1.01615945,659.96,659.61,0.30320947]
[1748988690691,1.01615945,659.95,659.61,0.30320947]
[1748988690897,1.01615945,659.94,659.61,0.30320947]
[1748988691193,1.01615945,659.93,659.61,0.30320947]
[1748988691391,1.01615945,659.92,659.61,0.30320947]
[1748988691597,1.01615945,659.91,659.61,0.30320947]
[1748988691795,1.01615945,659.9,659.61,0.30320947]
[1748988691996,1.01615945,659.89,659.61,0.30320947]
[1748988692296,3.77035672,660.77,659.61,0.30320947]
[1748988692297,1.01615945,659.88,659.61,0.30320947]
[1748988692493,1.01615945,659.87,659.61,0.78292309]
[1748988692799,1.13215543,660.08,659.61,0.78292309]
[1748988693001,1.01641521,660.07,659.61,0.78292309]
[1748988693201,1.01641521,660.06,659.61,0.78292309]
[1748988693399,1.13215543,660.08,659.61,0.30320947]
[1748988693400,1.01641521,660.05,659.61,0.30320947]
[1748988693600,1.01641521,660.04,659.61,0.30320947]
[1748988693804,1.01641521,660.03,659.61,0.30320947]
[1748988694000,1.13215543,660.06,659.61,0.30320947]
[1748988694001,1.01641521,660.02,659.61,0.30320947]
[1748988694199,1.01641521,660.01,659.61,0.30320947]
[1748988694499,1.13215543,660.06,659.61,0.30320947]
[1748988694500,1.01640584,660.0,659.61,0.30320947]
[1748988694693,1.01640584,659.99,659.61,0.30320947]
[1748988694895,1.01640584,659.98,659.61,0.30320947]
[1748988695199,1.01640584,659.97,659.61,0.30320947]
[1748988695401,1.01640584,659.96,659.61,0.30320947]
[1748988695701,1.01640584,659.95,659.61,0.30320947]
[1748988695901,1.01640584,659.94,659.61,0.30320947]
[1748988696098,1.01640584,659.93,659.61,0.30320947]
[1748988696295,1.01640584,659.92,659.61,0.30320947]
[1748988696497,1.01640584,659.91,659.61,0.30320947]
[1748988696698,1.01640584,659.9,659.61,0.30320947]
[1748988696898,1.01640584,659.89,659.61,0.30320947]
[1748988697101,1.01640584,659.88,659.61,0.30320947]
[1748988697301,1.01640584,659.87,659.61,0.30320947]
[1748988697497,1.01640584,659.86,659.61,0.30320947]
[1748988697801,1.01640584,659.85,659.61,0.30320947]
[1748988698000,1.13208825,660.05,659.61,0.30320947]
[1748988698196,1.01692943,660.04,659.61,0.30320947]
[1748988698398,1.01692943,660.03,659.61,0.30320947]
[1748988698697,1.01692943,660.02,659.61,0.30320947]
[1748988698997,1.01692943,660.01,659.61,0.30320947]
[1748988699197,1.01692943,660.0,659.61,0.30320947]
[1748988699503,1.01692943,659.99,659.61,0.30320947]
[1748988699803,1.01692943,659.98,659.61,0.30320947]
[1748988700005,1.01692943,659.97,659.61,0.30320947]
[1748988700204,1.01692943,659.96,659.61,0.30320947]
[1748988700399,1.01692943,659.95,659.61,0.30320947]
[1748988700704,1.01692943,659.94,659.61,0.30320947]
[1748988701000,1.01692943,659.93,659.61,0.30320947]
[1748988701199,1.01692943,659.92,659.61,0.30320947]
[1748988701405,1.01692943,659.91,659.61,0.30320947]
[1748988701605,1.01692943,659.9,659.61,0.30320947]
[1748988701803,1.01692943,659.89,659.61,0.30320947]
[1748988702002,1.01692943,659.88,659.61,0.30320947]
[1748988702204,1.01684515,659.87,659.61,0.30320947]
[1748988702406,1.01684515,659.86,659.61,0.30320947]
[1748988702700,1.01684515,659.85,659.61,0.30320947]
[1748988702901,1.01684515,659.84,659.61,0.30320947]
[1748988703104,1.01684515,659.83,659.61,0.30320947]
[1748988703303,1.13207685,660.12,659.61,0.30320947]
[1748988703503,2.14903796,660.11,659.61,0.30320947]
[1748988703709,1.01696111,660.1,659.61,0.30320947]
[1748988703904,1.01696111,660.09,659.61,0.30320947]
[1748988704105,1.01696111,660.08,659.61,0.30320947]
[1748988704305,3.77035672,661.09,659.61,0.30320947]
[1748988704306,1.01696111,660.07,659.61,0.30320947]
[1748988704601,1.01696111,660.06,659.61,0.30320947]
[1748988704805,1.01696111,660.05,659.61,0.30320947]
[1748988705007,1.01696111,660.04,659.61,0.30320947]
[1748988705207,1.01696111,660.03,659.61,0.30320947]
[1748988705401,1.01696111,660.02,659.61,0.30320947]
[1748988705604,1.01696111,660.01,659.61,0.30320947]
[1748988705802,1.01696111,660.0,659.61,0.30320947]
[1748988706004,1.50814268,660.26,659.61,0.30320947]
[1748988706205,1.13235007,660.1,659.61,0.30320947]
[1748988706402,1.01665533,660.09,659.61,0.30320947]
[1748988706607,1.01665533,660.08,659.61,0.30320947]
[1748988706809,1.01665533,660.07,659.61,0.30320947]
[1748988707002,1.01665533,660.06,659.61,0.30320947]
[1748988707205,1.01665533,660.05,659.61,0.30320947]
[1748988707407,1.01665533,660.04,659.61,0.30320947]
[1748988707603,1.01665533,660.03,659.61,0.30320947]
[1748988707803,1.01665533,660.02,659.61,0.30320947]
[1748988708006,1.01665533,660.01,659.61,0.30320947]
[1748988708206,1.01665533,660.0,659.61,0.30320947]
[1748988708403,1.01665533,659.99,659.61,0.30320947]
[1748988708602,1.01665533,659.98,659.61,0.30320947]
[1748988708808,1.01665533,659.97,659.61,0.30320947]
[1748988709008,1.01665533,659.96,659.61,0.30320947]
[1748988709207,1.01665533,659.95,659.61,0.30320947]
[1748988709406,1.01665533,659.94,659.61,0.30320947]
[1748988709607,1.01665533,659.93,659.61,0.30320947]
[1748988709806,1.01665533,659.92,659.61,0.30320947]
[1748988710012,1.50814268,660.25,659.61,0.30320947]
[1748988710013,1.01678667,659.91,659.61,0.30320947]
[1748988710213,1.01678667,659.9,659.61,0.30320947]
[1748988710413,1.01678667,659.89,659.61,0.30320947]
[1748988710615,1.01678667,659.88,659.61,0.30320947]
[1748988710815,1.01678667,659.87,659.61,0.30320947]
[1748988711011,3.77035672,661.04,659.61,0.30320947]
[1748988711012,1.01678667,659.86,659.61,0.30320947]
[1748988711216,1.01678667,659.85,659.61,0.30320947]
[1748988711514,1.01678667,659.84,659.61,0.30320947]
[1748988711715,1.01680651,659.83,659.61,0.30320947]
[1748988711914,1.01680651,659.82,659.61,0.30320947]
[1748988712110,1.01680651,659.81,659.61,0.30320947]
[1748988712314,1.01680651,659.8,659.61,0.30320947]
[1748988712514,1.13251836,660.08,659.61,0.30320947]
[1748988712714,1.01687779,660.07,659.61,0.30320947]
[1748988713009,1.01687779,660.06,659.61,0.30320947]
[1748988713214,1.01687779,660.05,659.61,0.30320947]
[1748988713411,1.01687779,660.04,659.61,0.30320947]
[1748988713611,1.01687779,660.03,659.61,0.30320947]
[1748988713815,1.01687779,660.02,659.61,0.30320947]
[1748988714016,1.50814268,660.23,659.61,0.30320947]
[1748988714314,1.13268802,660.07,659.61,0.30320947]
[1748988714514,2.14962866,660.06,659.61,0.30320947]
[1748988714713,1.01694064,660.05,659.61,0.30320947]
[1748988714910,1.01694064,660.04,659.61,0.30320947]
[1748988715210,1.01694064,660.03,659.61,0.30320947]
[1748988715411,1.01694064,660.02,659.61,0.30320947]
[1748988715611,1.01694064,660.01,659.61,0.30320947]
[1748988715816,1.01694064,660.0,659.61,0.30320947]
[1748988716115,1.01694064,659.99,659.61,0.30320947]
[1748988716311,1.01694064,659.98,659.61,0.30320947]
[1748988716512,1.01694064,659.97,659.61,0.30320947]
[1748988716816,1.01694064,659.96,659.61,0.30320947]
[1748988717016,1.01694064,659.95,659.61,0.30320947]
[1748988717316,3.77035672,660.99,659.61,0.30320947]
[1748988717317,1.01694064,659.94,659.61,0.30320947]
[1748988717518,1.01694064,659.93,659.61,0.30320947]
[1748988717816,1.13268802,660.03,659.61,0.30320947]
[1748988717817,1.01694064,659.92,659.61,0.30320947]
[1748988718013,1.01694737,659.91,659.61,0.30320947]
[1748988718219,1.01694737,659.9,659.61,0.30320947]
[1748988718419,1.01694737,659.89,659.61,0.30320947]
[1748988718620,1.01694737,659.88,659.61,0.30320947]
[1748988718819,1.01694737,659.87,659.61,0.30320947]
[1748988719019,1.01694737,659.86,659.61,0.30320947]
[1748988719215,1.01694737,659.85,659.61,0.30320947]
[1748988719420,1.01694737,659.84,659.61,0.30320947]
[1748988719719,1.01694737,659.83,659.61,0.30320947]
[1748988719915,1.01694737,659.82,659.61,0.30320947]
[1748988720121,1.01694737,659.81,659.61,0.30320947]
[1748988720421,1.01694737,659.8,659.61,0.30320947]
[1748988720622,1.01694737,659.79,659.61,0.30320947]
[1748988720817,1.01694737,659.78,659.61,0.30320947]
[1748988721022,1.50814268,660.15,659.61,0.30320947]
[1748988721318,1.13311307,660.0,659.61,0.30320947]
[1748988721525,1.01693734,659.99,659.61,0.30320947]
[1748988721723,1.01693734,659.98,659.61,0.30320947]
[1748988722022,1.01693734,659.97,659.61,0.30320947]
[1748988722222,1.01693734,659.96,659.61,0.30320947]
[1748988722422,1.01693734,659.95,659.61,0.30320947]
[1748988722622,1.01693734,659.94,659.61,0.30320947]
[1748988722823,1.01693734,659.93,659.61,0.30320947]
[1748988723120,1.01693734,659.92,659.61,0.30320947]
[1748988723317,1.01693734,659.91,659.61,0.30320947]
[1748988723520,1.01693734,659.9,659.61,0.30320947]
[1748988723725,1.01693734,659.89,659.61,0.30320947]
[1748988723923,1.01693734,659.88,659.61,0.30320947]
[1748988724120,1.01693734,659.87,659.61,0.30320947]
[1748988724322,1.01693734,659.86,659.61,0.30320947]
[1748988724620,1.01711062,659.85,659.61,0.30320947]
[1748988724926,1.01711062,659.84,659.61,0.30320947]
[1748988725126,1.01711062,659.83,659.61,0.30320947]
[1748988725323,1.01711062,659.82,659.61,0.30320947]
[1748988725626,1.01711062,659.81,659.61,0.30320947]
[1748988725821,1.01711062,659.8,659.61,0.30320947]
[1748988726125,1.01711062,659.79,659.61,0.30320947]
[1748988726326,1.13328119,660.02,659.61,0.30320947]
[1748988726520,1.01734664,660.01,659.61,0.30320947]
[1748988726725,1.01734664,660.0,659.61,0.30320947]
[1748988726921,1.01734664,659.99,659.61,0.30320947]
[1748988727124,1.01734664,659.98,659.61,0.30320947]
[1748988727324,1.01734664,659.97,659.61,0.30320947]
[1748988727520,1.01734664,659.96,659.61,0.30320947]
[1748988727726,1.01734664,659.95,659.61,0.30320947]
[1748988727923,1.01734664,659.94,659.61,0.30320947]
[1748988728125,1.01734664,659.93,659.61,0.30320947]
[1748988728324,1.01742144,659.92,659.61,0.30320947]
[1748988728522,1.13348597,660.01,659.61,0.30320947]
[1748988728523,1.01742144,659.91,659.61,0.30320947]
[1748988728722,1.01742144,659.9,659.61,0.30320947]
[1748988728923,1.01742144,659.89,659.61,0.30320947]
[1748988729122,1.13348597,660.01,659.61,0.30320947]
[1748988729123,1.01742144,659.88,659.61,0.30320947]
[1748988729327,1.01742144,659.87,659.61,0.30320947]
[1748988729528,1.01742144,659.86,659.61,0.30320947]
[1748988729824,1.01742144,659.85,659.61,0.30320947]
[1748988730020,1.01742144,659.84,659.61,0.30320947]
[1748988730222,1.13348597,659.93,659.61,0.30320947]
[1748988730223,1.01742144,659.83,659.61,0.30320947]
[1748988730423,1.01742144,659.82,659.61,0.30320947]
[1748988730622,1.01742144,659.81,659.61,0.30320947]
[1748988730823,1.01742144,659.8,659.61,0.30320947]
[1748988731022,1.01742144,659.79,659.61,0.30320947]
[1748988731227,1.01742144,659.78,659.61,0.30320947]
[1748988731428,1.01742144,659.77,659.61,0.30320947]
[1748988731623,1.01742144,659.76,659.61,0.30320947]
[1748988731826,1.01742144,659.75,659.61,0.30320947]
[1748988732023,1.01742144,659.74,659.61,0.30320947]
[1748988732224,1.01780278,659.73,659.61,0.30320947]
[1748988732428,1.01780278,659.72,659.61,0.30320947]
[1748988732724,1.01780278,659.71,659.61,0.30320947]
[1748988733026,1.01780278,659.7,659.61,0.30320947]
[1748988733229,1.01780278,659.69,659.61,0.30320947]
[1748988733431,1.01780278,659.68,659.61,0.30320947]
[1748988733625,1.01780278,659.67,659.61,0.30320947]
[1748988733826,1.01780278,659.66,659.61,0.30320947]
[1748988734028,1.13374104,659.88,659.61,0.30320947]
[1748988734228,1.01823712,659.87,659.61,0.30320947]
[1748988734432,1.01823712,659.86,659.61,0.30320947]
[1748988734632,1.01823712,659.85,659.61,0.30320947]
[1748988734931,1.01823712,659.84,659.61,0.30320947]
[1748988735133,1.01823712,659.83,659.61,0.30320947]
[1748988735432,1.01823712,659.82,659.61,0.30320947]
[1748988735632,1.01823712,659.81,659.61,0.30320947]
[1748988735928,1.02383259,659.8,659.61,0.30320947]
[1748988736129,1.02383259,659.79,659.61,0.30320947]
[1748988736335,1.02383259,659.78,659.61,0.30320947]
[1748988736534,1.02383259,659.77,659.61,0.30320947]
[1748988736733,1.13343311,659.88,659.61,0.30320947]
[1748988736734,1.02383259,659.76,659.61,0.30320947]
[1748988736933,1.02383259,659.75,659.61,0.30320947]
[1748988737135,1.02383259,659.74,659.61,0.30320947]
[1748988737330,1.02383259,659.73,659.61,0.30320947]
[1748988737635,1.02383259,659.72,659.61,0.30320947]
[1748988737832,1.02383259,659.71,659.61,0.30320947]
[1748988738029,1.02383259,659.7,659.61,0.30320947]
[1748988738230,1.02383259,659.69,659.61,0.30320947]
[1748988738435,1.02383259,659.68,659.61,0.30320947]
[1748988738635,1.02383259,659.67,659.61,0.30320947]
[1748988738828,1.13343311,659.9,659.61,0.30320947]
[1748988739036,1.02352248,659.89,659.61,0.30320947]
[1748988739335,1.02352248,659.88,659.61,0.30320947]
[1748988739634,1.02352248,659.87,659.61,0.30320947]
[1748988739832,1.02347889,659.86,659.61,0.30320947]
[1748988740029,1.02347889,659.85,659.61,0.30320947]
[1748988740330,1.02347889,659.84,659.61,0.30320947]
[1748988740528,1.02347889,659.83,659.61,0.30320947]
[1748988740733,1.02347889,659.82,659.61,0.30320947]
[1748988740928,1.02347889,659.81,659.61,0.30320947]
[1748988741133,1.02347889,659.8,659.61,0.30320947]
[1748988741334,1.02347889,659.79,659.61,0.30320947]
[1748988741531,1.02347889,659.78,659.61,0.30320947]
[1748988741836,1.02347889,659.77,659.61,0.30320947]
[1748988742037,1.02347889,659.76,659.61,0.30320947]
[1748988742237,1.02347889,659.75,659.61,0.30320947]
[1748988742438,1.02347889,659.74,659.61,0.30320947]
[1748988742635,1.02347889,659.73,659.61,0.30320947]
[1748988742842,1.02347889,659.72,659.61,0.30320947]
[1748988743037,1.02347889,659.71,659.61,0.30320947]
[1748988743236,1.02347889,659.7,659.61,0.30320947]
[1748988743435,1.13303672,659.9,659.61,0.30320947]
[1748988743637,1.02337463,659.89,659.61,0.30320947]
[1748988743944,1.02337463,659.88,659.61,0.30320947]
[1748988744244,1.02337463,659.87,659.61,0.30320947]
[1748988744544,1.13288259,659.88,659.61,0.30320947]
[1748988744545,1.02337463,659.86,659.61,0.30320947]
[1748988744737,1.02337463,659.85,659.61,0.30320947]
[1748988744941,1.02337463,659.84,659.61,0.30320947]
[1748988745142,1.02337463,659.83,659.61,0.30320947]
[1748988745341,1.02337463,659.82,659.61,0.30320947]
[1748988745539,1.02337463,659.81,659.61,0.30320947]
[1748988745841,1.02337463,659.8,659.61,0.30320947]
[1748988746041,1.02337463,659.79,659.61,0.30320947]
[1748988746243,1.02337463,659.78,659.61,0.30320947]
[1748988746438,1.02337463,659.77,659.61,0.30320947]
[1748988746638,1.02337463,659.76,659.61,0.30320947]
[1748988746839,1.02337463,659.75,659.61,0.30320947]
[1748988747044,1.02337463,659.74,659.61,0.30320947]
[1748988747244,1.02337463,659.73,659.61,0.30320947]
[1748988747443,1.02285338,659.72,659.61,0.30320947]
[1748988747642,1.02285338,659.71,659.61,0.30320947]
[1748988747845,1.02285338,659.7,659.61,0.30320947]
[1748988748044,1.02285338,659.69,659.61,0.30320947]
[1748988748243,1.02285338,659.68,659.61,0.30320947]
[1748988748442,1.13261002,659.88,659.61,0.30320947]
[1748988748645,1.02278496,659.87,659.61,0.30320947]
[1748988748846,1.02278496,659.86,659.61,0.30320947]
[1748988749043,1.02278496,659.85,659.61,0.30320947]
[1748988749244,1.02278496,659.84,659.61,0.30320947]
[1748988749549,1.02278496,659.83,659.61,0.30320947]
[1748988749843,1.02278496,659.82,659.61,0.30320947]
[1748988750047,1.02278496,659.81,659.61,0.30320947]
[1748988750244,1.13261002,659.89,659.61,0.30320947]
[1748988750245,1.02278496,659.8,659.61,0.30320947]
[1748988750443,1.02278496,659.79,659.61,0.30320947]
[1748988750642,1.02278496,659.78,659.61,0.30320947]
[1748988750844,1.02278496,659.77,659.61,0.30320947]
[1748988751048,1.02278496,659.76,659.61,0.30320947]
[1748988751249,1.50814268,660.0,659.61,0.30320947]
[1748988751449,1.1324648,659.89,659.61,0.30320947]
[1748988751649,1.02235966,659.88,659.61,0.30320947]
[1748988751849,1.02235966,659.87,659.61,0.30320947]
[1748988752048,1.02235966,659.86,659.61,0.30320947]
[1748988752243,1.02235966,659.85,659.61,0.30320947]
[1748988752444,1.02235966,659.84,659.61,0.30320947]
[1748988752648,1.02235966,659.83,659.61,0.30320947]
[1748988752944,1.1324648,659.89,659.61,0.30320947]
[1748988752945,1.02235966,659.82,659.61,0.30320947]
[1748988753148,1.02235966,659.81,659.61,0.30320947]
[1748988753344,1.02235966,659.8,659.61,0.30320947]
[1748988753547,1.02235966,659.79,659.61,0.30320947]
[1748988753744,1.50814268,660.15,659.61,0.30320947]
[1748988753745,1.02235966,659.78,659.61,0.30320947]
[1748988754049,1.02235966,659.77,659.61,0.30320947]
[1748988754244,1.02235966,659.76,659.61,0.30320947]
[1748988754450,1.02235966,659.75,659.61,0.30320947]
[1748988754650,1.02235966,659.74,659.61,0.30320947]
[1748988754849,1.02235966,659.73,659.61,0.30320947]
[1748988755044,1.50814268,660.07,659.61,0.30320947]
[1748988755248,1.13238571,659.9,659.61,0.30320947]
[1748988755551,1.02265942,659.89,659.61,0.30320947]
[1748988755746,1.02265942,659.88,659.61,0.30320947]
[1748988755945,1.02265942,659.87,659.61,0.30320947]
[1748988756145,1.02265942,659.86,659.61,0.30320947]
[1748988756345,1.02265942,659.85,659.61,0.30320947]
[1748988756545,1.02265942,659.84,659.61,0.30320947]
[1748988756748,1.02265942,659.83,659.61,0.30320947]
[1748988757047,1.02265942,659.82,659.61,0.30320947]
[1748988757249,1.02265942,659.81,659.61,0.30320947]
[1748988757551,1.02265942,659.8,659.61,0.30320947]
[1748988757749,1.02265942,659.79,659.61,0.30320947]
[1748988757949,1.02265942,659.78,659.61,0.30320947]
[1748988758151,1.02265942,659.77,659.61,0.30320947]
[1748988758345,1.02265942,659.76,659.61,0.30320947]
[1748988758545,1.13238571,659.91,659.61,0.30320947]
[1748988758546,1.02265942,659.75,659.61,0.30320947]
[1748988758749,1.02265942,659.74,659.61,0.30320947]
[1748988758950,1.02265942,659.73,659.61,0.30320947]
[1748988759148,1.02184752,659.72,659.61,0.30320947]
[1748988759349,1.02184752,659.71,659.61,0.30320947]
[1748988759548,1.02184752,659.7,659.61,0.30320947]
[1748988759751,1.02184752,659.69,659.61,0.30320947]
[1748988759950,1.02184752,659.68,659.61,0.30320947]
[1748988760147,1.02184752,659.67,659.61,0.30320947]
[1748988760451,1.02184752,659.66,659.61,0.30320947]
[1748988760652,1.02184752,659.65,659.61,0.30320947]
[1748988760851,1.02184752,659.64,659.61,0.30320947]
[1748988761047,1.02184752,659.63,659.61,0.30320947]
[1748988761246,1.02184752,659.62,659.61,0.30320947]